bitfinex-derivatives/quotes_SOLF0:USTF0_20230102
["timestamp","ask_amount","ask_price","bid_price","bid_amount"]
[1672649661700,50.7078,11.198,11.191,8.9]
[1672649662224,8.91,11.2,11.191,8.9]
[1672649662644,16.41652308,11.199,11.191,8.9]
[1672649662855,16.41652308,11.199,11.196,8.91]
[1672649663066,0.11992952,11.201,11.196,8.91]
[1672649663800,0.11992952,11.201,11.195,8.89]
[1672649664011,8.91,11.203,11.195,8.89]
[1672649668115,8.91,11.203,11.188,5.0]
[1672649668328,8.91,11.201,11.193,8.91]
[1672649668639,5.0,11.2,11.193,8.91]
[1672649668847,52.7032,11.202,11.195,8.91]
[1672649669266,61.6132,11.202,11.193,8.91]
[1672649669479,5.0,11.201,11.193,8.91]
[1672649670109,61.6132,11.202,11.193,8.91]
[1672649671052,5.0,11.201,11.193,8.91]
[1672649671473,8.91,11.196,11.188,8.91]
[1672649672633,8.89,11.195,11.186,8.91]
[1672649673789,58.5365,11.196,11.188,8.91]
[1672649674313,49.6265,11.196,11.189,8.91]
[1672649675046,8.91,11.198,11.189,8.91]
[1672649676831,8.91,11.196,11.188,8.9]
[1672649677041,5.0,11.195,11.188,8.9]
[1672649677466,8.91,11.196,11.188,8.9]
[1672649685031,8.96908785,11.198,11.19,8.91]
[1672649685239,8.85,11.198,11.19,8.91]
[1672649686081,8.85,11.198,11.187,50.0]
[1672649686391,0.11908785,11.199,11.193,8.91]
[1672649686602,0.11908785,11.199,11.197,8.9]
[1672649686813,8.85,11.205,11.197,8.9]
[1672649687973,8.91,11.204,11.196,8.91]
[1672649688598,8.89,11.202,11.194,8.91]
[1672649688808,5.0,11.201,11.194,8.91]
[1672649689547,8.89,11.202,11.194,8.91]
[1672649689753,8.89,11.202,11.194,8.75592928]
[1672649689965,8.91,11.204,11.196,8.91]
[1672649702681,8.91,11.2,11.192,9.02889072]
[1672649702996,5.0,11.199,11.192,8.91]
[1672649703411,8.91,11.2,11.192,8.91]
[1672649703621,61.2257,11.201,11.193,8.89]
[1672649703831,61.2257,11.201,11.195,8.9]
[1672649703832,52.3357,11.201,11.195,8.9]
[1672649706255,13.91,11.205,11.196,8.89]
[1672649710349,8.85,11.203,11.195,8.91]
[1672649710560,5.0,11.202,11.195,8.91]
[1672649711718,8.85,11.203,11.202,0.23259037]
[1672649711928,8.91,11.205,11.202,0.23259037]
[1672649712136,5.0,11.204,11.202,0.23259037]
[1672649712559,13.91,11.205,11.202,0.23259037]
[1672649713503,8.91,11.205,11.202,0.23259037]
[1672649715186,8.91,11.207,11.202,0.23259037]
[1672649715395,5.0,11.206,11.202,0.23259037]
[1672649715812,5.0,11.206,11.202,0.00259037]
[1672649717384,8.91,11.207,11.202,0.00259037]
[1672649717600,8.96932801,11.208,11.202,0.00259037]
[1672649717915,5.0,11.207,11.202,0.00259037]
[1672649718124,13.83,11.207,11.202,0.00259037]
[1672649718959,8.83,11.207,11.202,0.00259037]
[1672649719912,5.0,11.206,11.202,0.00259037]
[1672649721388,13.83,11.207,11.202,0.00259037]
[1672649722127,5.0,11.206,11.202,0.00259037]
[1672649723273,13.83,11.207,11.202,0.00259037]
[1672649723484,9.02954454,11.212,11.203,8.91]
[1672649723699,8.91,11.212,11.204,0.11970892]
[1672649723909,13.91,11.211,11.204,0.11970892]
[1672649724118,8.85,11.209,11.204,0.11970892]
[1672649724433,5.0,11.208,11.204,0.11970892]
[1672649726108,8.85,11.209,11.204,0.11970892]
[1672649726740,5.0,11.219,11.204,0.11970892]
[1672649726741,0.11954454,11.221,11.209,5.0]
[1672649726954,5.11954454,11.221,11.215,8.91]
[1672649727270,5.11954454,11.221,11.214,8.9]
[1672649728006,0.11954454,11.221,11.214,8.9]
[1672649728739,8.83,11.218,11.209,8.91]
[1672649728949,5.0,11.217,11.209,8.91]
[1672649729369,0.00010901,11.221,11.216,8.89]
[1672649729581,0.00010901,11.221,11.217,5.0]
[1672649730000,0.00010901,11.221,11.215,8.89]
[1672649731893,8.91010901,11.221,11.212,8.89]
[1672649732207,8.89,11.216,11.208,8.89]
[1672649732419,5.0,11.215,11.208,8.89]
[1672649732840,8.89,11.216,11.208,8.89]
[1672649733472,59.4834,11.218,11.209,8.89]
[1672649733779,8.85,11.218,11.209,8.89]
[1672649733995,5.0,11.218,11.211,8.91]
[1672649734205,16.3873619,11.217,11.211,8.91]
[1672649734626,16.3873619,11.217,11.212,8.9]
[1672649734942,16.3873619,11.219,11.212,8.9]
[1672649735152,5.0,11.218,11.212,8.9]
[1672649735467,0.00010901,11.221,11.215,8.9]
[1672649735678,0.00010901,11.221,11.216,5.0]
[1672649736511,0.00010901,11.221,11.215,8.9]
[1672649736722,8.91010901,11.221,11.212,8.91]
[1672649736941,8.91,11.221,11.212,8.91]
[1672649737780,8.91,11.222,11.213,8.9]
[1672649737994,5.0,11.221,11.213,8.9]
[1672649739034,8.91,11.222,11.213,8.9]
[1672649739353,8.83,11.223,11.215,8.9]
[1672649739557,5.0,11.222,11.215,8.9]
[1672649739878,5.0,11.222,11.216,8.89]
[1672649740191,13.89,11.225,11.216,8.89]
[1672649740192,13.89,11.225,11.217,5.0]
[1672649740403,13.89,11.225,11.216,8.89]
[1672649740822,16.37865691,11.224,11.216,8.89]
[1672649741035,16.37865691,11.224,11.219,8.89]
[1672649741451,16.37865691,11.227,11.219,8.89]
[1672649741659,5.0,11.226,11.219,8.89]
[1672649742294,16.37865691,11.225,11.219,8.89]
[1672649742710,16.37865691,11.226,11.219,8.89]
[1672649744292,25.20865691,11.226,11.217,8.91]
[1672649744503,5.0,11.225,11.217,8.91]
[1672649745027,16.37865691,11.224,11.217,8.91]
[1672649745236,5.0,11.223,11.217,8.91]
[1672649745765,5.0,11.225,11.217,8.91]
[1672649746394,16.37763016,11.224,11.217,8.91]
[1672649746606,5.0,11.223,11.217,8.91]
[1672649747130,5.0,11.225,11.217,8.91]
[1672649747346,13.83,11.226,11.217,8.91]
[1672649747655,5.0,11.223,11.217,8.91]
[1672649747861,5.0,11.223,11.211,35.64]
[1672649748071,5.0,11.223,11.216,8.91]
[1672649748917,16.37787274,11.222,11.216,8.91]
[1672649749128,16.37787274,11.222,11.217,8.9]
[1672649749548,16.37787274,11.223,11.217,8.9]
[1672649749759,5.0,11.222,11.217,8.9]
[1672649750286,5.0,11.224,11.217,8.9]
[1672649750603,5.0,11.224,11.216,8.91]
[1672649750810,16.37787086,11.223,11.216,8.91]
[1672649751230,16.37787086,11.224,11.216,8.91]
[1672649751652,16.37787086,11.224,11.215,8.92]
[1672649752178,16.37787086,11.225,11.215,8.92]
[1672649752386,5.0,11.224,11.215,8.92]
[1672649753017,16.37787086,11.223,11.215,8.92]
[1672649753223,5.0,11.222,11.215,8.92]
[1672649753543,5.0,11.224,11.215,8.92]
[1672649753750,5.0,11.225,11.217,8.94]
[1672649753959,16.37781505,11.223,11.217,8.94]
[1672649754381,16.37781505,11.225,11.217,8.94]
[1672649754592,5.0,11.224,11.217,8.94]
[1672649755431,5.0,11.222,11.217,8.94]
[1672649755642,5.0,11.222,11.216,8.85]
[1672649755850,5.0,11.222,11.214,8.94]
[1672649756486,53.374,11.224,11.214,8.94]
[1672649756694,48.374,11.224,11.214,8.94]
[1672649756902,8.92,11.227,11.216,8.94]
[1672649757112,16.37803189,11.223,11.217,8.85]
[1672649757534,21.37803189,11.227,11.217,8.85]
[1672649757955,16.37803189,11.226,11.217,8.85]
[1672649758168,5.0,11.225,11.217,8.85]
[1672649759002,16.37803189,11.224,11.217,8.85]
[1672649759217,5.0,11.223,11.217,8.85]
[1672649759533,16.37803189,11.224,11.217,8.85]
[1672649759743,16.37803189,11.222,11.217,8.85]
[1672649760162,16.37803189,11.226,11.217,8.85]
[1672649760375,5.0,11.225,11.217,8.85]
[1672649760691,16.37803189,11.224,11.217,8.85]
[1672649760904,5.0,11.223,11.217,8.85]
[1672649761425,16.37803189,11.224,11.22,8.85]
[1672649761740,53.8856,11.228,11.22,8.85]
[1672649762055,21.37701105,11.227,11.22,8.85]
[1672649762266,5.0,11.226,11.22,8.85]
[1672649762579,21.37701105,11.226,11.22,8.85]
[1672649762998,16.37701105,11.225,11.22,8.85]
[1672649763417,21.37701105,11.227,11.22,8.85]
[1672649763840,16.37701105,11.226,11.22,8.85]
[1672649764051,5.0,11.225,11.22,8.85]
[1672649764474,16.37701105,11.226,11.22,8.85]
[1672649764683,16.37701105,11.224,11.22,8.85]
[1672649765100,16.37701105,11.226,11.22,8.85]
[1672649765312,5.0,11.225,11.22,8.85]
[1672649765733,16.37701105,11.224,11.22,8.85]
[1672649765942,8.9,11.234,11.223,8.89]
[1672649766466,16.36707446,11.231,11.223,8.89]
[1672649766886,5.0,11.23,11.223,8.89]
[1672649767298,21.36707446,11.233,11.223,8.89]
[1672649767510,5.0,11.233,11.223,8.89]
[1672649767929,16.36722767,11.232,11.223,8.89]
[1672649768142,5.0,11.231,11.223,8.89]
[1672649768771,5.0,11.233,11.223,8.89]
[1672649768772,16.36722767,11.23,11.223,8.89]
[1672649769198,16.36722767,11.232,11.223,8.89]
[1672649769407,5.0,11.231,11.223,8.89]
[1672649769826,16.36722767,11.232,11.223,8.89]
[1672649770032,30.26722767,11.23,11.215,0.1192527]
[1672649770247,51.1292,11.229,11.219,8.92]
[1672649770454,5.0,11.228,11.219,8.92]
[1672649770662,16.36722767,11.228,11.219,8.92]
[1672649770871,16.36722767,11.228,11.223,5.0]
[1672649771087,56.1292,11.233,11.223,5.0]
[1672649771508,56.1292,11.233,11.217,103.4913]
[1672649771509,8.94,11.231,11.22,8.89]
[1672649771720,5.0,11.23,11.22,8.89]
[1672649772034,21.37297255,11.23,11.22,8.89]
[1672649772453,5.0,11.228,11.22,8.89]
[1672649772876,16.37297255,11.227,11.22,8.89]
[1672649773088,5.0,11.226,11.22,8.89]
[1672649773506,5.0,11.226,11.216,8.94]
[1672649774244,54.637,11.226,11.216,8.94]
[1672649774979,49.637,11.226,11.216,8.94]
[1672649775822,13.92,11.225,11.215,0.1192527]
[1672649776136,5.0,11.224,11.215,0.1192527]
[1672649777291,8.94,11.219,11.215,0.1192527]
[1672649777500,8.94,11.217,11.206,8.89]
[1672649777814,5.0,11.216,11.207,8.85]
[1672649778026,13.94,11.217,11.208,5.0]
[1672649778972,13.94,11.217,11.207,8.85]
[1672649779181,13.94,11.217,11.205,8.93]
[1672649779384,5.0,11.216,11.205,8.93]
[1672649780756,8.92,11.214,11.203,8.93]
[1672649780967,5.0,11.213,11.204,5.0]
[1672649781493,5.0,11.213,11.203,8.93]
[1672649781912,8.92,11.21,11.202,0.00259037]
[1672649782125,58.6432,11.209,11.198,8.92]
[1672649782431,5.0,11.208,11.199,3.27752894]
[1672649782647,13.94,11.206,11.194,8.89]
[1672649782858,13.94,11.206,11.194,5.0]
[1672649782859,8.92,11.204,11.194,5.0]
[1672649783062,5.0,11.203,11.194,5.0]
[1672649783276,5.0,11.203,11.195,3.27950681]
[1672649784540,5.0,11.203,11.194,3.27950681]
[1672649784751,58.6432,11.203,11.194,3.27950681]
[1672649785801,67.5832,11.203,11.194,3.27950681]
[1672649786321,8.94,11.202,11.194,3.27950681]
[1672649786739,58.6432,11.203,11.192,3.27950681]
[1672649786740,8.94,11.2,11.192,3.27950681]
[1672649787372,8.94,11.2,11.191,0.11914182]
[1672649787794,8.94,11.2,11.191,3.39864863]
[1672649788216,8.94,11.2,11.191,0.11914182]
[1672649790529,8.94,11.202,11.191,0.11914182]
[1672649790740,62.5832,11.203,11.193,5.0]
[1672649790951,5.0,11.202,11.193,5.0]
[1672649791269,8.94,11.201,11.191,0.11914182]
[1672649791481,5.0,11.2,11.194,3.27950681]
[1672649792003,5.0,11.2,11.191,0.11914182]
[1672649792425,8.94,11.199,11.191,3.39864863]
[1672649792631,13.94,11.198,11.191,3.39864863]
[1672649792846,8.92,11.195,11.191,0.11914182]
[1672649794106,5.0,11.194,11.191,0.11914182]
[1672649795471,8.92,11.195,11.191,0.11914182]
[1672649795682,8.92,11.193,11.191,0.11914182]
[1672649795893,5.0,11.192,11.185,3.2817805]
[1672649797262,8.92,11.193,11.185,3.2817805]
[1672649797786,48.7225,11.197,11.188,8.94]
[1672649798097,48.7225,11.197,11.189,5.0]
[1672649798622,48.7225,11.197,11.19,3.2817805]
[1672649799782,48.7225,11.197,11.189,3.2817805]
[1672649799991,48.7225,11.197,11.19,5.0]
[1672649800304,48.7225,11.197,11.191,3.2817805]
[1672649801359,48.7225,11.197,11.189,3.2817805]
[1672649801989,48.7225,11.197,11.19,5.0]
[1672649802512,48.7225,11.197,11.189,3.2817805]
[1672649802718,48.7225,11.197,11.191,3.2817805]
[1672649803144,48.7225,11.197,11.19,3.2817805]
[1672649803563,48.7225,11.197,11.189,3.2817805]
[1672649803774,48.7225,11.197,11.19,5.0]
[1672649804191,48.7225,11.197,11.189,3.2817805]
[1672649806932,48.7225,11.197,11.19,8.94]
[1672649807562,48.7225,11.197,11.191,3.2817805]
[1672649808088,48.53298232,11.197,11.191,3.2817805]
[1672649809032,48.53298232,11.197,11.19,3.2817805]
[1672649809345,48.53298232,11.197,11.189,5.0]
[1672649809550,48.53298232,11.197,11.188,8.88]
[1672649809767,48.53298232,11.197,11.19,3.28012688]
[1672649810708,48.53298232,11.197,11.189,8.28012688]
[1672649811131,48.53298232,11.197,11.19,3.28012688]
[1672649813439,48.53298232,11.197,11.189,3.28012688]
[1672649813761,57.45298232,11.197,11.189,3.28012688]
[1672649813973,57.45298232,11.197,11.185,8.85]
[1672649816597,57.45298232,11.197,11.187,8.92]
[1672649817122,8.94,11.202,11.192,5.0]
[1672649817330,5.0,11.2,11.192,5.0]
[1672649817752,5.0,11.2,11.191,8.88]
[1672649818593,5.0,11.2,11.192,3.28006767]
[1672649820058,51.227,11.201,11.192,3.28006767]
[1672649823949,51.227,11.201,11.191,8.88]
[1672649825315,51.227,11.201,11.192,3.2800315]
[1672649825526,51.227,11.201,11.193,5.0]
[1672649826471,51.227,11.201,11.192,5.0]
[1672649827318,51.227,11.201,11.191,8.88]
[1672649828160,51.227,11.201,11.192,3.27999305]
[1672649828363,51.227,11.201,11.193,5.0]
[1672649828575,51.227,11.201,11.192,3.27999305]
[1672649828785,5.0,11.2,11.192,3.27999305]
[1672649830470,8.92,11.196,11.192,3.27999305]
[1672649830681,13.94,11.195,11.184,8.94]
[1672649831099,5.0,11.194,11.184,8.94]
[1672649831304,5.0,11.194,11.185,3.28195995]
[1672649833939,13.94,11.195,11.185,3.28195995]
[1672649834148,53.3902154,11.199,11.189,8.85]
[1672649835093,5.0,11.198,11.189,8.85]
[1672649836357,58.3902154,11.199,11.189,8.85]
[1672649837293,53.3902154,11.199,11.189,8.85]
[1672649838138,5.0,11.198,11.189,8.85]
[1672649840030,8.94,11.194,11.181,8.89]
[1672649840240,51.9927,11.193,11.181,8.94]
[1672649840452,5.0,11.192,11.181,8.94]
[1672649840762,5.0,11.192,11.182,3.28216804]
[1672649841924,8.94,11.192,11.182,3.28216804]
[1672649842134,5.0,11.191,11.182,3.28216804]
[1672649844449,8.92,11.19,11.182,3.28216804]
[1672649845185,8.94,11.185,11.18,3.28216804]
[1672649845702,5.0,11.184,11.176,3.28216804]
[1672649846126,5.0,11.184,11.177,8.92]
[1672649846332,5.0,11.184,11.176,3.28216804]
[1672649846548,13.94,11.184,11.172,8.94]
[1672649846757,13.94,11.184,11.173,5.0]
[1672649846968,13.94,11.184,11.173,8.28470642]
[1672649847277,13.94,11.184,11.173,3.28470642]
[1672649847493,13.94,11.184,11.174,3.28470642]
[1672649847914,13.94,11.184,11.173,3.28470642]
[1672649848230,13.94,11.184,11.174,5.0]
[1672649848643,13.94,11.184,11.173,3.28470642]
[1672649848854,13.94,11.184,11.172,8.94]
[1672649848855,13.94,11.184,11.175,3.28470642]
[1672649849277,13.94,11.184,11.173,8.28470642]
[1672649849491,13.94,11.184,11.173,3.28470642]
[1672649849697,13.94,11.184,11.174,3.28470642]
[1672649850121,13.94,11.184,11.173,3.28470642]
[1672649851909,8.94,11.184,11.173,3.28470642]
[1672649854538,13.94,11.186,11.175,8.89]
[1672649855061,13.94,11.186,11.176,3.28470642]
[1672649855480,8.92,11.185,11.176,3.28470642]
[1672649855689,5.0,11.184,11.176,3.28470642]
[1672649856213,5.0,11.186,11.176,8.89]
[1672649856419,5.0,11.186,11.177,3.28470642]
[1672649856741,13.94,11.186,11.177,3.28470642]
[1672649857477,13.94,11.186,11.176,3.28470642]
[1672649858844,54.7423,11.187,11.176,12.17470642]
[1672649859054,54.7423,11.187,11.177,3.28470642]
[1672649859894,5.0,11.186,11.177,3.28470642]
[1672649860626,49.7423,11.187,11.177,3.28470642]
[1672649860946,49.7423,11.187,11.178,8.93]
[1672649861156,5.0,11.189,11.178,8.93]
[1672649861157,5.0,11.189,11.179,5.0]
[1672649861367,4.90146798,11.189,11.179,8.28470642]
[1672649861784,4.90146798,11.189,11.18,3.28470642]
[1672649862732,4.90146798,11.189,11.179,3.28470642]
[1672649863257,4.90146798,11.189,11.178,8.93]
[1672649869674,65.37922749,11.19,11.178,8.93]
[1672649869876,60.37922749,11.19,11.178,8.93]
[1672649870083,51.43922749,11.19,11.184,8.93]
[1672649870298,51.43922749,11.19,11.185,5.0]
[1672649870825,51.43922749,11.19,11.184,8.93]
[1672649871247,51.43922749,11.19,11.182,8.85]
[1672649871561,51.43922749,11.19,11.17,5.0]
[1672649871562,60.35922749,11.19,11.179,8.88]
[1672649871981,5.0,11.189,11.179,8.88]
[1672649875660,60.35922749,11.19,11.179,8.88]
[1672649876389,60.2399,11.19,11.179,8.88]
[1672649876920,51.3199,11.19,11.181,8.92]
[1672649877132,51.3199,11.19,11.182,5.0]
[1672649877552,51.3199,11.19,11.183,3.28317009]
[1672649878393,51.3199,11.19,11.182,3.28317009]
[1672649878600,51.3199,11.19,11.183,5.0]
[1672649879232,51.3199,11.19,11.184,3.28317009]
[1672649879861,51.3199,11.19,11.182,8.28317009]
[1672649880072,51.3199,11.19,11.183,8.88]
[1672649880284,0.11933174,11.192,11.184,5.0]
[1672649880697,0.11933174,11.192,11.184,8.93]
[1672649880912,9.05933174,11.192,11.181,8.92]
[1672649881122,8.94,11.192,11.182,5.0]
[1672649881648,8.94,11.192,11.183,3.28287677]
[1672649882379,8.94,11.192,11.181,3.28287677]
[1672649882699,9.05933174,11.195,11.184,8.85]
[1672649882909,9.05933174,11.195,11.186,8.92]
[1672649883119,0.11933174,11.195,11.187,13.92]
[1672649883643,0.11933174,11.195,11.187,8.92]
[1672649884908,5.11933174,11.195,11.185,8.85]
[1672649885115,8.94,11.194,11.183,8.92]
[1672649885320,5.0,11.193,11.183,8.92]
[1672649885536,5.0,11.193,11.184,3.28264309]
[1672649887323,13.94,11.194,11.184,3.28264309]
[1672649888903,8.94,11.194,11.184,3.28264309]
[1672649889108,0.11933174,11.195,11.185,8.89]
[1672649889319,0.11933174,11.195,11.186,5.0]
[1672649889949,0.11933174,11.195,11.185,8.89]
[1672649890372,5.11933174,11.195,11.185,8.89]
[1672649890573,5.11933174,11.195,11.186,3.28262705]
[1672649891739,5.0,11.195,11.186,3.28262705]
[1672649893421,60.131,11.196,11.186,3.28262705]
[1672649894255,5.0,11.193,11.186,3.28262705]
[1672649894786,13.94,11.193,11.184,3.28262705]
[1672649895104,13.94,11.193,11.183,5.0]
[1672649895523,13.94,11.193,11.184,3.28268301]
[1672649896783,5.0,11.191,11.184,3.28268301]
[1672649896992,8.94,11.189,11.183,3.28268301]
[1672649897408,5.0,11.188,11.179,3.28268301]
[1672649898150,5.0,11.188,11.178,8.93]
[1672649898353,8.94,11.187,11.176,8.92]
[1672649898567,5.0,11.186,11.176,8.92]
[1672649898781,5.0,11.186,11.177,3.28468706]
[1672649898988,5.0,11.186,11.178,13.88]
[1672649899198,5.0,11.188,11.178,13.88]
[1672649899411,13.94,11.189,11.178,13.88]
[1672649899723,5.0,11.189,11.179,12.21468706]
[1672649900040,5.0,11.189,11.179,8.93]
[1672649900357,57.6014,11.19,11.179,8.93]
[1672649900880,57.6014,11.19,11.18,3.28314504]
[1672649901090,57.6014,11.19,11.181,5.0]
[1672649901299,5.0,11.189,11.181,5.0]
[1672649901509,5.0,11.189,11.179,8.93]
[1672649902772,8.9,11.188,11.177,8.93]
[1672649902981,5.0,11.187,11.177,8.93]
[1672649903187,5.0,11.187,11.178,12.22488264]
[1672649903400,13.94,11.189,11.179,5.0]
[1672649904875,13.94,11.189,11.178,8.94]
[1672649905288,8.94,11.189,11.178,8.94]
[1672649907502,0.11931984,11.191,11.182,8.85]
[1672649907710,60.06781984,11.194,11.183,5.0]
[1672649908125,60.06781984,11.194,11.184,3.28339417]
[1672649908340,5.0,11.193,11.184,3.28339417]
[1672649909075,5.0,11.193,11.183,3.28339417]
[1672649910127,0.11931984,11.194,11.185,8.93]
[1672649910336,51.16781984,11.198,11.188,8.89]
[1672649910546,5.0,11.197,11.188,8.89]
[1672649910863,13.9,11.197,11.185,8.92]
[1672649911596,5.0,11.193,11.183,8.85]
[1672649912121,5.0,11.193,11.184,3.28304809]
[1672649912333,58.533,11.193,11.184,3.28304809]
[1672649913277,62.433,11.193,11.184,12.18304809]
[1672649913485,8.9,11.196,11.187,8.9]
[1672649913694,8.9,11.196,11.188,5.0]
[1672649914013,5.0,11.195,11.187,8.9]
[1672649915803,8.9,11.194,11.186,8.9]
[1672649916117,5.0,11.193,11.186,8.9]
[1672649916322,13.9,11.193,11.184,8.9]
[1672649917061,8.84,11.191,11.183,8.9]
[1672649917482,8.84,11.191,11.184,3.2830983]
[1672649918532,8.9,11.196,11.187,8.9]
[1672649918737,58.4234,11.196,11.184,3.2830983]
[1672649918944,8.84,11.194,11.186,8.9]
[1672649919155,13.9,11.193,11.184,8.9]
[1672649919474,8.9,11.191,11.183,8.9]
[1672649919685,5.0,11.19,11.183,8.9]
[1672649919889,5.0,11.19,11.184,3.28305306]
[1672649920845,8.9,11.191,11.184,3.28305306]
[1672649921161,13.84,11.193,11.185,8.9]
[1672649922839,8.84,11.193,11.185,8.9]
[1672649923053,8.9,11.195,11.186,8.9]
[1672649923257,9.01965606,11.195,11.186,8.9]
[1672649924623,5.0,11.194,11.186,8.9]
[1672649926935,14.01965606,11.195,11.186,8.9]
[1672649927361,9.01965606,11.195,11.186,8.9]
[1672649927991,5.0,11.194,11.186,8.9]
[1672649930094,8.9,11.193,11.185,8.9]
[1672649930305,5.0,11.192,11.185,8.9]
[1672649931564,8.9,11.193,11.185,8.9]
[1672649938295,8.9,11.192,11.184,8.9]
[1672649938605,5.0,11.191,11.184,8.9]
[1672649938816,5.0,11.191,11.185,3.28281981]
[1672649939237,8.84,11.193,11.185,12.18281981]
[1672649939448,5.0,11.192,11.185,12.18281981]
[1672649939764,5.0,11.192,11.185,8.9]
[1672649939974,8.84,11.193,11.185,8.9]
[1672649940284,8.84,11.193,11.186,8.9]
[1672649940602,0.11948397,11.194,11.186,8.9]
[1672649940918,5.11948397,11.194,11.186,8.9]
[1672649942180,8.84,11.193,11.185,8.9]
[1672649942389,5.0,11.192,11.185,8.9]
[1672649945017,8.84,11.193,11.185,8.9]
[1672649951007,0.11948397,11.194,11.187,8.9]
[1672649951216,9.01948397,11.195,11.187,8.9]
[1672649952795,8.9,11.195,11.187,8.9]
[1672649953111,13.9,11.194,11.186,8.9]
[1672649953322,8.9,11.192,11.184,8.9]
[1672649953533,5.0,11.191,11.184,8.9]
[1672649954059,8.84,11.195,11.187,8.9]
[1672649955004,13.9,11.194,11.185,8.9]
[1672649956685,8.9,11.194,11.185,8.9]
[1672649957316,5.0,11.193,11.185,8.9]
[1672649957732,8.9,11.194,11.185,8.9]
[1672649957948,8.9,11.195,11.187,8.9]
[1672649958255,5.0,11.194,11.187,8.9]
[1672649958998,13.9,11.194,11.185,8.9]
[1672649959626,8.9,11.192,11.184,8.9]
[1672649959838,5.0,11.191,11.184,8.9]
[1672649961092,8.9,11.192,11.184,8.9]
[1672649965828,0.1199685,11.196,11.189,5.0]
[1672649966031,5.1199685,11.196,11.189,5.0]
[1672649966454,5.1199685,11.196,11.188,8.9]
[1672649967298,5.1199685,11.196,11.182,5.0]
[1672649967614,5.0,11.194,11.187,8.9]
[1672649968460,13.9,11.194,11.185,8.9]
[1672649970250,5.0,11.191,11.184,8.9]
[1672649970879,8.9,11.189,11.181,8.9]
[1672649971407,8.9,11.189,11.182,3.28336235]
[1672649972776,53.5143,11.19,11.183,8.9]
[1672649973824,13.9,11.194,11.186,8.9]
[1672649974047,0.1197451,11.193,11.186,8.9]
[1672649974239,5.1197451,11.193,11.186,8.9]
[1672649974875,0.1197451,11.193,11.186,8.9]
[1672649976343,0.1197451,11.193,11.187,8.9]
[1672649976558,0.1197451,11.193,11.188,13.9]
[1672649976977,0.1197451,11.193,11.188,8.9]
[1672649977925,0.1197451,11.193,11.187,8.9]
[1672649980343,8.9,11.191,11.183,8.9]
[1672649980552,5.0,11.19,11.183,8.9]
[1672649982969,13.9,11.191,11.183,8.9]
[1672649983180,13.9,11.191,11.174,58.0025]
[1672649983181,8.9,11.188,11.179,8.9]
[1672649983391,8.9,11.186,11.178,8.9]